[Event "Sunway Sitges Chess Festival"]
[Date "2024.12.21"]
[White "Yang, Qindong"]
[Black "Xu, Minghui"]
[WhiteElo "2258"]
[BlackElo "2405"]
[Round "8.22"]
[Result "1/2-1/2"]
[TimeControl "40/5400+30:1800+30"]

1. d4 {[%clk 1:30:52]} 1... e6 {[%clk 1:30:38]} 2. c4 {[%clk 1:30:43]} 2... Nf6
{[%clk 1:30:55]} 3. Nf3 {[%clk 1:30:34]} 3... d5 {[%clk 1:29:31]} 4. g3 {[%clk
1:29:29]} 4... Bb4+ {[%clk 1:28:55]} 5. Bd2 {[%clk 1:28:58]} 5... Be7 {[%clk
1:29:15]} 6. Bg2 {[%clk 1:28:33]} 6... O-O {[%clk 1:29:15]} 7. O-O {[%clk
1:28:26]} 7... c6 {[%clk 1:29:22]} 8. Qc2 {[%clk 1:28:13]} 8... Nbd7 {[%clk
1:28:49]} 9. Rd1 {[%clk 1:26:59]} 9... b6 {[%clk 1:28:11]} 10. Bf4 {[%clk
1:26:58]} 10... Nh5 {[%clk 1:28:15]} 11. Bc1 {[%clk 1:26:28]} 11... Nhf6 {[%clk
1:28:30]} 12. Bf4 {[%clk 1:25:29]} 12... Nh5 {[%clk 1:28:52]} 13. Bc1 {[%clk
1:25:22]} 13... Nhf6 {[%clk 1:29:15]} 14. Bf4 {[%clk 1:24:55]} 14... Nh5 {[%clk
1:27:51]} 1/2-1/2

[Variant "Standard"]
[Site "Europe Echecs"]

[Event "Sunway Sitges Chess Festival"]
[Date "2024.12.21"]
[White "Diaz Rosas, Julio Cesar"]
[Black "Chia, Yu Zhe Ashton"]
[WhiteElo "2401"]
[BlackElo "2252"]
[Round "8.23"]
[Result "1/2-1/2"]
[TimeControl "40/5400+30:1800+30"]

1. d4 {[%clk 1:30:55]} 1... Nf6 {[%clk 1:25:54]} 2. c4 {[%clk 1:31:17]} 2... e6
{[%clk 1:25:32]} 3. Bf4 {[%clk 1:31:39]} 3... Bb4+ {[%clk 1:25:39]} 4. Nd2
{[%clk 1:32:02]} 4... c5 {[%clk 1:23:44]} 5. dxc5 {[%clk 1:30:20]} 5... Bxc5
{[%clk 1:23:47]} 6. e3 {[%clk 1:30:28]} 6... b6 {[%clk 1:20:49]} 7. Ngf3 {[%clk
1:28:59]} 7... Bb7 {[%clk 1:20:48]} 8. a3 {[%clk 1:29:11]} 8... Be7 {[%clk
1:19:33]} 9. Bd3 {[%clk 1:26:51]} 9... d6 {[%clk 1:18:00]} 10. e4 {[%clk
1:24:19]} 10... Nbd7 {[%clk 1:17:10]} 11. b4 {[%clk 1:10:48]} 11... O-O {[%clk
1:06:06]} 12. O-O {[%clk 1:09:35]} 12... Ne5 {[%clk 1:02:35]} 13. Bc2 {[%clk
1:08:10]} 13... Ng6 {[%clk 0:58:38]} 14. Be3 {[%clk 1:07:42]} 14... Ng4 {[%clk
0:58:57]} 15. Bd4 {[%clk 1:06:31]} 15... Bf6 {[%clk 0:58:16]} 16. h3 {[%clk
1:06:08]} 16... N4e5 {[%clk 0:56:26]} 17. Nxe5 {[%clk 1:05:42]} 17... Bxe5
{[%clk 0:54:45]} 18. Nf3 {[%clk 1:04:38]} 18... Qf6 {[%clk 0:55:02]} 19. Nxe5
{[%clk 0:59:40]} 19... dxe5 {[%clk 0:54:36]} 20. Be3 {[%clk 0:59:24]} 20... Rfd8
{[%clk 0:53:38]} 21. Qg4 {[%clk 0:58:15]} 21... Nf4 {[%clk 0:51:48]} 22. Rfd1
{[%clk 0:56:26]} 22... Qg6 {[%clk 0:47:53]} 23. Qf3 {[%clk 0:51:18]} 23... Rdc8
{[%clk 0:36:07]} 24. c5 {[%clk 0:44:10]} 24... bxc5 {[%clk 0:34:57]} 25. Bxc5
{[%clk 0:40:05]} 25... f5 {[%clk 0:25:34]} 26. Re1 {[%clk 0:37:09]} 26... fxe4
{[%clk 0:22:39]} 27. Bxe4 {[%clk 0:35:18]} 27... Bxe4 {[%clk 0:12:03]} 28. Qxe4
{[%clk 0:34:31]} 28... Nd3 {[%clk 0:12:26]} 29. Qxg6 {[%clk 0:30:36]} 29... hxg6
{[%clk 0:12:51]} 30. Re3 {[%clk 0:28:54]} 30... Nxc5 {[%clk 0:13:13]} 31. bxc5
{[%clk 0:29:19]} 31... Rxc5 {[%clk 0:13:36]} 32. Rd1 {[%clk 0:29:06]} 32... Rf8
{[%clk 0:11:32]} 33. Rd6 {[%clk 0:24:16]} 33... Rf6 {[%clk 0:09:56]} 34. Ra6
{[%clk 0:23:12]} 34... Rc1+ {[%clk 0:09:35]} 35. Kh2 {[%clk 0:23:40]} 35... Rxf2
{[%clk 0:09:08]} 36. Rxe6 {[%clk 0:22:12]} 36... Kf7 {[%clk 0:07:05]} 37. R6xe5
{[%clk 0:21:18]} 37... Rcc2 {[%clk 0:07:28]} 38. Rg3 {[%clk 0:20:50]} 38... Rf5
{[%clk 0:07:46]} 39. Re4 {[%clk 0:18:38]} 39... a5 {[%clk 0:06:28]} 40. Rd4
{[%clk 0:48:20]} 40... g5 {[%clk 0:34:01]} 41. Rd6 {[%clk 0:44:25]} 41... Rcc5
{[%clk 0:32:23]} 42. Rgd3 {[%clk 0:36:38]} 42... Kg8 {[%clk 0:30:29]} 43. Ra6
{[%clk 0:34:45]} 43... Rcd5 {[%clk 0:30:25]} 44. Rb3 {[%clk 0:30:48]} 44... Rb5
{[%clk 0:30:45]} 45. Rg3 {[%clk 0:30:18]} 45... Kh7 {[%clk 0:30:52]} 46. Ra7
{[%clk 0:29:55]} 46... Rfe5 {[%clk 0:28:49]} 47. Rg4 {[%clk 0:28:30]} 47... Rf5
{[%clk 0:28:37]} 48. Ra4 {[%clk 0:27:40]} 48... Rbc5 {[%clk 0:28:35]} 49. Kg3
{[%clk 0:25:18]} 49... Rc3+ {[%clk 0:28:24]} 50. Kh2 {[%clk 0:25:01]} 50... Rcc5
{[%clk 0:28:53]} 51. Ra6 {[%clk 0:24:03]} 51... Rb5 {[%clk 0:28:16]} 52. Re4
{[%clk 0:19:12]} 52... Rbe5 {[%clk 0:28:14]} 53. Rxe5 {[%clk 0:19:38]} 53...
Rxe5 {[%clk 0:28:29]} 54. a4 {[%clk 0:19:33]} 54... Rc5 {[%clk 0:28:53]} 55. g4
{[%clk 0:19:00]} 55... g6 {[%clk 0:27:52]} 56. Kg2 {[%clk 0:18:51]} 56... Kh6
{[%clk 0:27:42]} 57. Kf2 {[%clk 0:18:15]} 57... Re5 {[%clk 0:25:25]} 58. Kf3
{[%clk 0:18:06]} 58... Rc5 {[%clk 0:23:43]} 59. Ke2 {[%clk 0:17:51]} 59... Rc2+
{[%clk 0:23:44]} 60. Kd1 {[%clk 0:16:46]} 60... Rc3 {[%clk 0:18:32]} 61. Rxa5
{[%clk 0:17:05]} 61... Rxh3 {[%clk 0:18:35]} 62. Rc5 {[%clk 0:14:45]} 62... Rd3+
{[%clk 0:18:50]} 63. Kc2 {[%clk 0:12:16]} 63... Rd4 {[%clk 0:19:15]} 64. Kb3
{[%clk 0:12:06]} 64... Rxg4 {[%clk 0:19:40]} 65. a5 {[%clk 0:12:31]} 65... Rg1
{[%clk 0:19:23]} 66. Rc2 {[%clk 0:12:15]} 66... Ra1 {[%clk 0:18:29]} 67. Rh2+
{[%clk 0:10:27]} 67... Kg7 {[%clk 0:18:57]} 68. Kb4 {[%clk 0:10:48]} 68... Kf6
{[%clk 0:19:08]} 69. Rf2+ {[%clk 0:10:18]} 69... Ke5 {[%clk 0:19:26]} 70. Rg2
{[%clk 0:10:25]} 70... Kf4 {[%clk 0:19:51]} 71. Rf2+ {[%clk 0:10:46]} 71... Ke5
{[%clk 0:17:20]} 1/2-1/2

[Variant "Standard"]
[Site "Europe Echecs"]

[Event "Sunway Sitges Chess Festival"]
[Date "2024.12.21"]
[White "Schippke, Manon"]
[Black "Sofronie, Iulian"]
[WhiteElo "2213"]
[BlackElo "2368"]
[Round "8.24"]
[Result "0-1"]
[TimeControl "40/5400+30:1800+30"]

1. d4 {[%clk 1:28:00]} 1... Nf6 {[%clk 1:30:47]} 2. Bg5 {[%clk 1:28:21]} 2...
Ne4 {[%clk 1:31:10]} 3. h4 {[%clk 1:28:46]} 3... d5 {[%clk 1:31:02]} 4. Nd2
{[%clk 1:29:05]} 4... Nxd2 {[%clk 1:27:29]} 5. Qxd2 {[%clk 1:29:09]} 5... Bf5
{[%clk 1:25:27]} 6. e3 {[%clk 1:21:22]} 6... c6 {[%clk 1:22:30]} 7. f3 {[%clk
1:20:43]} 7... h5 {[%clk 1:20:43]} 8. O-O-O {[%clk 1:16:04]} 8... Nd7 {[%clk
1:19:48]} 9. Bd3 {[%clk 1:16:11]} 9... Bxd3 {[%clk 1:19:53]} 10. Qxd3 {[%clk
1:16:36]} 10... Qa5 {[%clk 1:20:02]} 11. Kb1 {[%clk 1:17:00]} 11... e6 {[%clk
1:11:48]} 12. e4 {[%clk 1:17:06]} 12... Nb6 {[%clk 1:06:59]} 13. Qb3 {[%clk
1:06:47]} 13... Qb5 {[%clk 1:00:40]} 14. Qxb5 {[%clk 1:05:09]} 14... cxb5 {[%clk
1:01:06]} 15. Ne2 {[%clk 1:05:34]} 15... Bd6 {[%clk 0:55:35]} 16. e5 {[%clk
1:03:35]} 16... Be7 {[%clk 0:54:04]} 17. Be3 {[%clk 0:59:51]} 17... Nc4 {[%clk
0:53:43]} 18. Bf2 {[%clk 1:00:18]} 18... Rc8 {[%clk 0:53:53]} 19. g4 {[%clk
0:59:42]} 19... Kd7 {[%clk 0:53:33]} 20. c3 {[%clk 0:48:53]} 20... b4 {[%clk
0:52:48]} 21. Nf4 {[%clk 0:43:14]} 21... hxg4 {[%clk 0:51:14]} 22. fxg4 {[%clk
0:43:41]} 22... bxc3 {[%clk 0:49:24]} 23. bxc3 {[%clk 0:40:23]} 23... Na3+
{[%clk 0:46:37]} 24. Kb2 {[%clk 0:40:11]} 24... Rc6 {[%clk 0:47:00]} 25. Nd3
{[%clk 0:37:30]} 25... Rb6+ {[%clk 0:47:11]} 26. Kc1 {[%clk 0:35:59]} 26... Bg5+
{[%clk 0:47:30]} 27. hxg5 {[%clk 0:35:57]} 27... Rb1+ {[%clk 0:47:40]} 28. Kd2
{[%clk 0:36:23]} 28... Rxh1 {[%clk 0:48:01]} 29. Nc5+ {[%clk 0:36:41]} 29... Kc6
{[%clk 0:48:25]} 30. Rxh1 {[%clk 0:36:50]} 30... Rxh1 {[%clk 0:48:48]} 31. g6
{[%clk 0:37:17]} 31... fxg6 {[%clk 0:48:48]} 32. Nxe6 {[%clk 0:37:43]} 32...
Nb1+ {[%clk 0:48:24]} 33. Kd3 {[%clk 0:35:08]} 33... Rh3+ {[%clk 0:48:10]} 34.
Kc2 {[%clk 0:35:28]} 34... Rh2 {[%clk 0:48:29]} 35. Kxb1 {[%clk 0:35:35]} 35...
Rxf2 {[%clk 0:48:53]} 36. Nxg7 {[%clk 0:36:02]} 36... Kd7 {[%clk 0:49:11]} 0-1

[Variant "Standard"]
[Site "Europe Echecs"]

[Event "Sunway Sitges Chess Festival"]
[Date "2024.12.21"]
[White "kiladze, Luka"]
[Black "Shukhman, Anna"]
[WhiteElo "2359"]
[BlackElo "2245"]
[Round "8.25"]
[Result "1-0"]
[TimeControl "40/5400+30:1800+30"]

1. e4 {[%clk 1:30:58]} 1... c5 {[%clk 1:30:00]} 2. Nf3 {[%clk 1:31:23]} 2... d6
{[%clk 1:28:22]} 3. d4 {[%clk 1:31:43]} 3... cxd4 {[%clk 1:28:50]} 4. Qxd4
{[%clk 1:32:10]} 4... Nc6 {[%clk 1:27:41]} 5. Bb5 {[%clk 1:32:34]} 5... Bd7
{[%clk 1:26:37]} 6. Qd3 {[%clk 1:32:56]} 6... g6 {[%clk 1:25:44]} 7. c4 {[%clk
1:31:09]} 7... Bg7 {[%clk 1:25:08]} 8. Nc3 {[%clk 1:31:33]} 8... Nf6 {[%clk
1:24:16]} 9. O-O {[%clk 1:31:40]} 9... O-O {[%clk 1:22:26]} 10. h3 {[%clk
1:27:46]} 10... Nb4 {[%clk 1:09:56]} 11. Qe2 {[%clk 1:25:28]} 11... a6 {[%clk
1:10:00]} 12. Bxd7 {[%clk 1:25:51]} 12... Nxd7 {[%clk 1:10:04]} 13. Rd1 {[%clk
1:16:22]} 13... Rc8 {[%clk 1:03:40]} 14. Bg5 {[%clk 1:12:49]} 14... h6 {[%clk
0:55:34]} 15. Be3 {[%clk 1:11:02]} 15... Qa5 {[%clk 0:53:24]} 16. Bd4 {[%clk
1:05:02]} 16... Nc6 {[%clk 0:47:05]} 17. Bxg7 {[%clk 1:03:39]} 17... Kxg7 {[%clk
0:47:32]} 18. Nd5 {[%clk 1:02:46]} 18... e6 {[%clk 0:39:55]} 19. Ne3 {[%clk
0:54:16]} 19... Qc5 {[%clk 0:36:59]} 20. b3 {[%clk 0:48:23]} 20... Nde5 {[%clk
0:31:09]} 21. Rd2 {[%clk 0:45:04]} 21... b5 {[%clk 0:29:54]} 22. cxb5 {[%clk
0:44:36]} 22... axb5 {[%clk 0:25:17]} 23. Rad1 {[%clk 0:44:43]} 23... Rfd8
{[%clk 0:23:23]} 24. Nxe5 {[%clk 0:41:51]} 24... dxe5 {[%clk 0:20:58]} 25. Rxd8
{[%clk 0:41:54]} 25... Nxd8 {[%clk 0:21:26]} 26. a4 {[%clk 0:41:28]} 26... bxa4
{[%clk 0:14:05]} 27. bxa4 {[%clk 0:41:57]} 27... Nc6 {[%clk 0:14:32]} 28. Qb5
{[%clk 0:40:49]} 28... Qc3 {[%clk 0:14:55]} 29. Nc4 {[%clk 0:33:11]} 29... Kf6
{[%clk 0:13:21]} 30. Nb6 {[%clk 0:27:18]} 30... Rc7 {[%clk 0:11:28]} 31. Kh2
{[%clk 0:24:39]} 31... Nd4 {[%clk 0:07:51]} 32. Qd3 {[%clk 0:25:00]} 32... Ke7
{[%clk 0:04:04]} 33. Qxc3 {[%clk 0:18:53]} 33... Rxc3 {[%clk 0:04:29]} 34. f4
{[%clk 0:19:11]} 34... f6 {[%clk 0:04:21]} 35. fxe5 {[%clk 0:18:57]} 35... fxe5
{[%clk 0:04:49]} 36. a5 {[%clk 0:19:04]} 36... Nb5 {[%clk 0:01:15]} 37. Rd7+
{[%clk 0:19:10]} 37... Kf6 {[%clk 0:01:10]} 38. Rb7 {[%clk 0:14:02]} 38... Nd6
{[%clk 0:01:11]} 39. a6 {[%clk 0:14:27]} 39... Ra3 {[%clk 0:01:27]} 40. Nd7+
{[%clk 0:44:22]} 40... Kg5 {[%clk 0:30:56]} 41. Rb6 {[%clk 0:43:38]} 41... Nxe4
{[%clk 0:26:25]} 42. Nxe5 {[%clk 0:36:50]} 42... h5 {[%clk 0:09:26]} 43. Nc6
{[%clk 0:32:08]} 43... Nd6 {[%clk 0:07:39]} 44. Nd4 {[%clk 0:28:40]} 44... Nc4
{[%clk 0:07:13]} 45. Rxe6 {[%clk 0:27:48]} 45... Nd2 {[%clk 0:06:56]} 46. Nb5
{[%clk 0:20:48]} 46... Ra1 {[%clk 0:04:27]} 47. a7 {[%clk 0:20:19]} 47... Nf1+
{[%clk 0:02:40]} 48. Kg1 {[%clk 0:20:43]} 48... Ng3+ {[%clk 0:03:07]} 49. Kf2
{[%clk 0:21:05]} 49... h4 {[%clk 0:03:25]} 50. Re1 {[%clk 0:20:38]} 50... Ra2+
{[%clk 0:03:43]} 51. Kf3 {[%clk 0:20:14]} 51... Ra5 {[%clk 0:01:14]} 52. Re8
{[%clk 0:19:51]} 52... Rxb5 {[%clk 0:01:39]} 53. a8=Q {[%clk 0:20:16]} 53...
Rb3+ {[%clk 0:02:07]} 54. Re3 {[%clk 0:20:28]} 1-0

[Variant "Standard"]
[Site "Europe Echecs"]

[Event "Sunway Sitges Chess Festival"]
[Date "2024.12.21"]
[White "Nalbandyan, Vahan"]
[Black "Arkell, Keith C"]
[WhiteElo "2197"]
[BlackElo "2355"]
[Round "8.26"]
[Result "0-1"]
[TimeControl "40/5400+30:1800+30"]

1. e4 Nf6 2. Nc3 d5 3. e5 d4 4. Nce2 Ng4 5. f4 h5 6. Nf3 c5 7. Ng3 g6 8. Bc4 e6
9. Qe2 Be7 10. Ne4 Nh6 11. b4 cxb4 12. a3 Nc6 13. Bb2 Nf5 14. O-O Kf8 15. Qf2 b6
16. Rfd1 Bb7 17. Nfg5 Nxe5 18. fxe5 Bxg5 19. Bd3 bxa3 20. Bxa3+ Kg7 21. Rf1 h4
22. Rab1 Be7 23. Nd6 Bxd6 24. exd6 Qg5 25. Bxf5 gxf5 26. Qxd4+ f6 27. Rf2 h3 28.
Rb3 Rh4 29. Qc3 Rc8 30. d7 Rxc3 31. d8=Q Rxb3 32. cxb3 Bxg2 33. Bd6 Rh8 34. Qc7+
Kg6 35. Bg3 Qg4 36. Qc1 e5 37. d4 Qxd4 38. Qb1 Be4 39. Qc1 Rd8 40. Kf1 Bg2+ 41.
Ke1 Qb4+ 42. Ke2 Qe4+ 0-1

[Variant "Standard"]
[Site "Europe Echecs"]

[Event "Sunway Sitges Chess Festival"]
[Date "2024.12.21"]
[White "Alexiadis, Hristos"]
[Black "Li, Harry"]
[WhiteElo "2341"]
[BlackElo "2194"]
[Round "8.27"]
[Result "1-0"]
[TimeControl "40/5400+30:1800+30"]

1. d4 {[%clk 1:30:28]} 1... d5 {[%clk 1:30:55]} 2. Nf3 {[%clk 1:30:52]} 2... Nf6
{[%clk 1:31:05]} 3. e3 {[%clk 1:30:10]} 3... c5 {[%clk 1:29:36]} 4. c4 {[%clk
1:27:50]} 4... e6 {[%clk 1:29:45]} 5. a3 {[%clk 1:28:13]} 5... dxc4 {[%clk
1:28:43]} 6. Bxc4 {[%clk 1:28:32]} 6... a6 {[%clk 1:29:09]} 7. Bd3 {[%clk
1:27:30]} 7... Be7 {[%clk 1:27:13]} 8. dxc5 {[%clk 1:25:52]} 8... Bxc5 {[%clk
1:27:30]} 9. O-O {[%clk 1:26:07]} 9... O-O {[%clk 1:27:50]} 10. e4 {[%clk
1:23:18]} 10... Be7 {[%clk 1:19:49]} 11. Nc3 {[%clk 1:15:42]} 11... Nc6 {[%clk
1:14:02]} 12. e5 {[%clk 1:15:10]} 12... Nd7 {[%clk 1:12:42]} 13. Bf4 {[%clk
0:59:03]} 13... g5 {[%clk 1:03:45]} 14. Bg3 {[%clk 0:53:39]} 14... g4 {[%clk
1:03:51]} 15. Nd4 {[%clk 0:53:41]} 15... Ncxe5 {[%clk 0:59:47]} 16. Bc2 {[%clk
0:51:24]} 16... Bf6 {[%clk 0:56:19]} 17. Qe2 {[%clk 0:48:27]} 17... Bg7 {[%clk
0:52:03]} 18. Rad1 {[%clk 0:46:11]} 18... Qe7 {[%clk 0:45:38]} 19. f4 {[%clk
0:42:27]} 19... gxf3 {[%clk 0:44:35]} 20. Nxf3 {[%clk 0:39:30]} 20... Qc5+
{[%clk 0:39:24]} 21. Kh1 {[%clk 0:39:37]} 21... Qc4 {[%clk 0:33:04]} 22. Qd2
{[%clk 0:39:04]} 22... Qg4 {[%clk 0:29:40]} 23. Nxe5 {[%clk 0:26:19]} 23... Nxe5
{[%clk 0:25:44]} 24. Rf4 {[%clk 0:26:31]} 24... Qg5 {[%clk 0:25:45]} 25. Ne4
{[%clk 0:21:54]} 25... Qh6 {[%clk 0:23:23]} 26. Qd6 {[%clk 0:13:21]} 26... Ng6
{[%clk 0:23:11]} 27. Nf6+ {[%clk 0:13:19]} 27... Kh8 {[%clk 0:19:59]} 28. Ng4
{[%clk 0:10:40]} 28... Qg5 {[%clk 0:19:29]} 29. Bxg6 {[%clk 0:10:51]} 29... hxg6
{[%clk 0:18:01]} 30. Nf6 {[%clk 0:09:49]} 30... Bh6 {[%clk 0:15:12]} 31. Rh4
{[%clk 0:09:11]} 31... Kg7 {[%clk 0:14:31]} 32. Be5 {[%clk 0:07:41]} 32... Qxh4
{[%clk 0:07:11]} 33. Qxf8+ {[%clk 0:08:04]} 33... Kxf8 {[%clk 0:07:39]} 34. Rd8+
{[%clk 0:08:28]} 34... Ke7 {[%clk 0:08:06]} 35. Re8# {[%clk 0:08:52]} 1-0

[Variant "Standard"]
[Site "Europe Echecs"]

[Event "Sunway Sitges Chess Festival"]
[Date "2024.12.21"]
[White "Aarav A"]
[Black "Naoum, Spyridon"]
[WhiteElo "2186"]
[BlackElo "2338"]
[Round "8.28"]
[Result "0-1"]
[TimeControl "40/5400+30:1800+30"]

1. Nf3 {[%clk 1:30:46]} 1... d5 {[%clk 1:30:49]} 2. g3 {[%clk 1:31:06]} 2... Nd7
{[%clk 1:29:26]} 3. d4 {[%clk 1:31:21]} 3... Nb6 {[%clk 1:29:53]} 4. Bg2 {[%clk
1:30:38]} 4... Bf5 {[%clk 1:29:59]} 5. Nc3 {[%clk 1:26:01]} 5... e6 {[%clk
1:29:48]} 6. O-O {[%clk 1:25:23]} 6... Nf6 {[%clk 1:11:06]} 7. h3 {[%clk
1:02:50]} 7... Bb4 {[%clk 1:08:39]} 8. Nh4 {[%clk 1:01:42]} 8... c6 {[%clk
1:08:02]} 9. Nxf5 {[%clk 1:01:46]} 9... exf5 {[%clk 1:08:30]} 10. Qd3 {[%clk
1:02:06]} 10... Qd7 {[%clk 1:08:07]} 11. Nb1 {[%clk 0:45:59]} 11... O-O {[%clk
1:07:22]} 12. Nd2 {[%clk 0:43:59]} 12... Rfe8 {[%clk 1:04:29]} 13. a3 {[%clk
0:43:39]} 13... Bxd2 {[%clk 1:02:52]} 14. Bxd2 {[%clk 0:43:55]} 14... Nc4 {[%clk
1:02:55]} 15. Bc1 {[%clk 0:42:24]} 15... h6 {[%clk 0:58:21]} 16. b3 {[%clk
0:40:55]} 16... Nd6 {[%clk 0:58:44]} 17. a4 {[%clk 0:38:12]} 17... Qe6 {[%clk
0:58:10]} 18. e3 {[%clk 0:37:46]} 18... h5 {[%clk 0:55:44]} 19. h4 {[%clk
0:36:32]} 19... g6 {[%clk 0:48:45]} 20. Ba3 {[%clk 0:36:45]} 20... Nde4 {[%clk
0:48:54]} 21. c4 {[%clk 0:35:42]} 21... Rad8 {[%clk 0:49:18]} 22. Rac1 {[%clk
0:34:56]} 22... a6 {[%clk 0:43:34]} 23. Rc2 {[%clk 0:32:45]} 23... Qc8 {[%clk
0:38:35]} 24. b4 {[%clk 0:29:07]} 24... Qb8 {[%clk 0:32:09]} 25. cxd5 {[%clk
0:25:54]} 25... Nxd5 {[%clk 0:31:24]} 26. Bxe4 {[%clk 0:19:33]} 26... Rxe4
{[%clk 0:31:47]} 27. b5 {[%clk 0:19:59]} 27... axb5 {[%clk 0:22:08]} 28. axb5
{[%clk 0:19:36]} 28... cxb5 {[%clk 0:22:02]} 29. Kg2 {[%clk 0:19:48]} 29... b6
{[%clk 0:12:50]} 30. Qxb5 {[%clk 0:16:24]} 30... Nxe3+ {[%clk 0:11:22]} 31. fxe3
{[%clk 0:16:18]} 31... Rxe3 {[%clk 0:11:50]} 32. Rf3 {[%clk 0:16:05]} 32... Qa8
{[%clk 0:07:31]} 33. Rf2 {[%clk 0:16:10]} 33... Rxa3 {[%clk 0:07:23]} 34. Qxb6
{[%clk 0:16:01]} 34... Rc8 {[%clk 0:06:39]} 35. Qd6 {[%clk 0:15:41]} 35... Rxf3
{[%clk 0:06:03]} 36. Rxf3 {[%clk 0:16:03]} 36... Rc2+ {[%clk 0:06:26]} 37. Kh3
{[%clk 0:16:00]} 37... Qxf3 {[%clk 0:06:37]} 0-1

[Variant "Standard"]
[Site "Europe Echecs"]

[Event "Sunway Sitges Chess Festival"]
[Date "2024.12.21"]
[White "Patrascu, Catalin-Lucian"]
[Black "Coles, Ruben"]
[WhiteElo "2299"]
[BlackElo "2155"]
[Round "8.29"]
[Result "0-1"]
[TimeControl "40/5400+30:1800+30"]

1. d4 {[%clk 1:30:55]} 1... d5 {[%clk 1:30:21]} 2. c4 {[%clk 1:31:19]} 2... e6
{[%clk 1:30:48]} 3. Nc3 {[%clk 1:31:43]} 3... a6 {[%clk 1:31:15]} 4. cxd5 {[%clk
1:30:47]} 4... exd5 {[%clk 1:31:40]} 5. Qc2 {[%clk 1:29:22]} 5... h6 {[%clk
1:26:24]} 6. Bf4 {[%clk 1:28:09]} 6... Nf6 {[%clk 1:24:16]} 7. e3 {[%clk
1:24:44]} 7... Bd6 {[%clk 1:21:39]} 8. Bxd6 {[%clk 1:22:39]} 8... Qxd6 {[%clk
1:21:57]} 9. Bd3 {[%clk 1:22:40]} 9... O-O {[%clk 1:20:49]} 10. Nf3 {[%clk
1:17:04]} 10... Be6 {[%clk 1:20:18]} 11. O-O {[%clk 1:16:20]} 11... Nbd7 {[%clk
1:20:01]} 12. Rac1 {[%clk 1:15:26]} 12... c6 {[%clk 1:19:14]} 13. h3 {[%clk
1:11:43]} 13... Rfe8 {[%clk 1:18:24]} 14. Ne2 {[%clk 1:07:48]} 14... Nh5 {[%clk
1:11:14]} 15. Qc3 {[%clk 0:57:17]} 15... Nhf6 {[%clk 1:07:39]} 16. Ng3 {[%clk
0:46:53]} 16... Rac8 {[%clk 0:57:04]} 17. b4 {[%clk 0:40:56]} 17... b5 {[%clk
0:54:28]} 18. Ne5 {[%clk 0:40:57]} 18... Nb6 {[%clk 0:53:57]} 19. f4 {[%clk
0:37:51]} 19... Nc4 {[%clk 0:53:31]} 20. Bb1 {[%clk 0:33:40]} 20... Qc7 {[%clk
0:46:43]} 21. Qd3 {[%clk 0:23:05]} 21... Qd6 {[%clk 0:44:39]} 22. Qc3 {[%clk
0:21:57]} 22... Qc7 {[%clk 0:43:20]} 23. e4 {[%clk 0:10:58]} 23... dxe4 {[%clk
0:36:37]} 24. Nxe4 {[%clk 0:04:47]} 24... Nxe4 {[%clk 0:31:51]} 25. Bxe4 {[%clk
0:05:15]} 25... Bd5 {[%clk 0:31:28]} 26. Bb1 {[%clk 0:04:21]} 26... f6 {[%clk
0:27:53]} 27. Qd3 {[%clk 0:04:27]} 27... Kf8 {[%clk 0:27:52]} 28. Qh7 {[%clk
0:01:33]} 28... fxe5 {[%clk 0:27:43]} 29. fxe5+ {[%clk 0:01:38]} 29... Ke7
{[%clk 0:27:59]} 30. e6 {[%clk 0:00:44]} 30... Bxe6 {[%clk 0:26:33]} 31. Rce1
{[%clk 0:00:45]} 31... Qg3 {[%clk 0:25:19]} 32. Bg6 {[%clk 0:00:34]} 32... Kd6
{[%clk 0:19:48]} 33. Qxg7 {[%clk 0:00:32]} 33... Re7 {[%clk 0:18:57]} 34. Qf6
{[%clk 0:00:32]} 34... Rg8 {[%clk 0:17:10]} 35. d5 {[%clk 0:00:37]} 35... Rxg6
{[%clk 0:15:06]} 36. Rxe6+ {[%clk 0:00:55]} 36... Rxe6 {[%clk 0:15:32]} 37. Qd8+
{[%clk 0:01:17]} 37... Ke5 {[%clk 0:15:57]} 38. Rf2 {[%clk 0:00:35]} 38... cxd5
{[%clk 0:15:49]} 39. Qc7+ {[%clk 0:00:36]} 39... Kd4 {[%clk 0:15:50]} 40. Qc5+
{[%clk 0:30:48]} 40... Kc3 {[%clk 0:13:59]} 0-1

[Variant "Standard"]
[Site "Europe Echecs"]